[Event "*** Titled Tuesday 3|2 Blitz"]
[Site "Chess.com"]
[Date "2015.11.03"]
[Round "2"]
[White "Fandorine"]
[Black "Krutoy123"]
[Result "1/2-1/2"]
[WhiteElo "2497"]
[BlackElo "2269"]
[TimeControl "180+2"]
[EndTime "11:22:32 PST"]
[Termination "Game drawn by agreement"]

1. e4 {[%clk 0:03:01.9]} 1... c5 {[%clk 0:02:51.5]} 2. b3 {[%clk 0:03:00.2]}
2... e5 {[%clk 0:02:39.9]} 3. Bb2 {[%clk 0:03:00.2]} 3... Nc6 {[%clk 0:02:39.7]}
4. Bc4 {[%clk 0:03:00.4]} 4... d6 {[%clk 0:02:39.2]} 5. d3 {[%clk 0:03:01.3]}
5... Nf6 {[%clk 0:02:37.1]} 6. Ne2 {[%clk 0:03:02.4]} 6... Be7 {[%clk
0:02:34.2]} 7. O-O {[%clk 0:03:02.3]} 7... O-O {[%clk 0:02:34.6]} 8. Nbc3 {[%clk
0:03:03]} 8... Nd4 {[%clk 0:02:30.4]} 9. a4 {[%clk 0:03:01.5]} 9... Be6 {[%clk
0:02:20.8]} 10. Qd2 {[%clk 0:02:41.9]} 10... Nh5 {[%clk 0:02:16.8]} 11. Qd1
{[%clk 0:02:01.9]} 11... g6 {[%clk 0:02:14.4]} 12. Nxd4 {[%clk 0:01:56.9]} 12...
cxd4 {[%clk 0:02:14.1]} 13. Nd5 {[%clk 0:01:57.6]} 13... Bg5 {[%clk 0:02:10.2]}
14. g3 {[%clk 0:01:56.6]} 14... Kg7 {[%clk 0:02:04.5]} 15. f4 {[%clk 0:01:45]}
15... Bxd5 {[%clk 0:01:53.4]} 16. Bxd5 {[%clk 0:01:40]} 16... exf4 {[%clk
0:01:52.1]} 17. Bxd4+ {[%clk 0:00:50.6]} 17... Bf6 {[%clk 0:01:51.7]} 18. Bxf6+
{[%clk 0:00:51.5]} 18... Qxf6 {[%clk 0:01:51.7]} 19. Kh1 {[%clk 0:00:53]} 19...
Qe5 {[%clk 0:01:42.8]} 20. d4 {[%clk 0:00:46.4]} 20... Qg5 {[%clk 0:01:42.8]}
21. Qd2 {[%clk 0:00:30.3]} 21... Rac8 {[%clk 0:01:09.7]} 22. c4 {[%clk
0:00:29.1]} 22... b6 {[%clk 0:01:03.5]} 23. gxf4 {[%clk 0:00:29]} 23... Qh4
{[%clk 0:01:03.7]} 24. Qf2 {[%clk 0:00:20.8]} 24... Qxf2 {[%clk 0:01:02.4]} 25.
Rxf2 {[%clk 0:00:19.7]} 25... Nf6 {[%clk 0:01:04.3]} 26. Re1 {[%clk 0:00:19.1]}
26... Rfe8 {[%clk 0:00:53.5]} 27. Rfe2 {[%clk 0:00:20.2]} 27... Nh5 {[%clk
0:00:42.1]} 28. Rf2 {[%clk 0:00:19.1]} 28... Nf6 {[%clk 0:00:42.2]} 29. Rfe2
{[%clk 0:00:12.7]} 29... Nh5 {[%clk 0:00:42.3]} 30. Rf1 {[%clk 0:00:13.9]} 30...
Nf6 {[%clk 0:00:40.9]} 31. e5 {[%clk 0:00:11.6]} 31... Nxd5 {[%clk 0:00:40.3]}
32. cxd5 {[%clk 0:00:12.5]} 32... Rc3 {[%clk 0:00:36.9]} 33. f5 {[%clk
0:00:13.9]} 33... Rd3 {[%clk 0:00:20]} 34. fxg6 {[%clk 0:00:09.7]} 34... fxg6
{[%clk 0:00:17.4]} 35. e6 {[%clk 0:00:11.2]} 35... Rxd4 {[%clk 0:00:16.5]} 36.
Rf7+ {[%clk 0:00:12]} 36... Kh6 {[%clk 0:00:17.6]} 37. Rxa7 {[%clk 0:00:12.6]}
37... Rxd5 {[%clk 0:00:18.9]} 38. e7 {[%clk 0:00:14]} 38... Rd3 {[%clk
0:00:13.4]} 39. b4 {[%clk 0:00:15.4]} 39... Kg7 {[%clk 0:00:12.2]} 40. a5 {[%clk
0:00:16.6]} 40... bxa5 {[%clk 0:00:13]} 41. bxa5 {[%clk 0:00:17.6]} 41... Ra3
{[%clk 0:00:14.3]} 42. Kg2 {[%clk 0:00:18.7]} 42... d5 {[%clk 0:00:14]} 43. a6
{[%clk 0:00:19.8]} 43... d4 {[%clk 0:00:14.5]} 44. Rd2 {[%clk 0:00:21]} 44...
Kf7 {[%clk 0:00:13]} 45. Rf2+ {[%clk 0:00:21]} 45... Kg7 {[%clk 0:00:12.6]} 46.
Rf4 {[%clk 0:00:12.8]} 46... d3 {[%clk 0:00:12.6]} 47. Rd4 {[%clk 0:00:13.8]}
47... Kf7 {[%clk 0:00:14.1]} 48. Rf4+ {[%clk 0:00:12.2]} 48... Ke6 {[%clk
0:00:13.7]} 49. Rd4 {[%clk 0:00:10.2]} 49... Kf7 {[%clk 0:00:14.1]} 50. Rf4+
{[%clk 0:00:09.9]} 1/2-1/2

[Event "*** Titled Tuesday 3|2 Blitz"]
[Site "Chess.com"]
[Date "2015.11.03"]
[Round "2"]
[White "DrHolmes13"]
[Black "motivated_bishop"]
[Result "0-1"]
[WhiteElo "2321"]
[BlackElo "2196"]
[TimeControl "180+2"]
[EndTime "11:23:06 PST"]
[Termination "motivated_bishop won by resignation"]

1. d4 {[%clk 0:03:01.9]} 1... Nf6 {[%clk 0:03:00.2]} 2. c4 {[%clk 0:03:02.9]}
2... g6 {[%clk 0:03:01.5]} 3. Nf3 {[%clk 0:03:03.5]} 3... Bg7 {[%clk 0:03:02.5]}
4. g3 {[%clk 0:03:05.4]} 4... O-O {[%clk 0:03:02.5]} 5. Bg2 {[%clk 0:03:06.8]}
5... d6 {[%clk 0:03:03.6]} 6. O-O {[%clk 0:03:06.9]} 6... Nc6 {[%clk 0:03:03.9]}
7. Nc3 {[%clk 0:03:04]} 7... a6 {[%clk 0:03:04.9]} 8. Bf4 {[%clk 0:03:00.9]}
8... h6 {[%clk 0:02:59]} 9. Qd2 {[%clk 0:02:56.6]} 9... g5 {[%clk 0:02:56.8]}
10. Be3 {[%clk 0:02:57.4]} 10... Ng4 {[%clk 0:02:55.4]} 11. Rab1 {[%clk
0:02:46.6]} 11... Rb8 {[%clk 0:02:55.4]} 12. Rbc1 {[%clk 0:02:45.8]} 12... Nxe3
{[%clk 0:02:48.5]} 13. fxe3 {[%clk 0:02:46.5]} 13... e5 {[%clk 0:02:43.7]} 14.
d5 {[%clk 0:02:46.4]} 14... Ne7 {[%clk 0:02:41.7]} 15. e4 {[%clk 0:02:47.5]}
15... b5 {[%clk 0:02:38.8]} 16. b3 {[%clk 0:02:40.8]} 16... b4 {[%clk
0:02:34.7]} 17. Nd1 {[%clk 0:02:39.3]} 17... f5 {[%clk 0:02:34.9]} 18. exf5
{[%clk 0:02:39.6]} 18... Nxf5 {[%clk 0:02:07.3]} 19. e4 {[%clk 0:02:38.5]} 19...
Nd4 {[%clk 0:01:57.8]} 20. Ne3 {[%clk 0:02:36.5]} 20... Nxf3+ {[%clk 0:01:55.4]}
21. Bxf3 {[%clk 0:02:36.8]} 21... Bh3 {[%clk 0:01:55.9]} 22. Bg2 {[%clk
0:02:33.9]} 22... Bd7 {[%clk 0:01:52.2]} 23. Rxf8+ {[%clk 0:02:32]} 23... Qxf8
{[%clk 0:01:53.2]} 24. Rf1 {[%clk 0:02:32.7]} 24... Qe8 {[%clk 0:01:52.7]} 25.
Bf3 {[%clk 0:02:30.8]} 25... Qg6 {[%clk 0:01:52.4]} 26. Qe2 {[%clk 0:02:27.7]}
26... h5 {[%clk 0:01:39.1]} 27. g4 {[%clk 0:02:07.7]} 27... h4 {[%clk
0:01:36.4]} 28. Nf5 {[%clk 0:01:56]} 28... Bf8 {[%clk 0:01:22.8]} 29. Qe3 {[%clk
0:01:49.7]} 29... Rb6 {[%clk 0:01:18.8]} 30. Kh1 {[%clk 0:01:47.6]} 30... Kh7
{[%clk 0:01:14.4]} 31. Bg2 {[%clk 0:01:46.1]} 31... Qg8 {[%clk 0:01:11]} 32. Qf2
{[%clk 0:01:43.5]} 32... Kg6 {[%clk 0:01:09.1]} 33. h3 {[%clk 0:01:34.8]} 33...
a5 {[%clk 0:00:30.2]} 34. Nxh4+ {[%clk 0:01:30.6]} 34... gxh4 {[%clk 0:00:31.2]}
35. Qxf8 {[%clk 0:01:32.2]} 35... Qxf8 {[%clk 0:00:32.6]} 36. Rxf8 {[%clk
0:01:33.9]} 36... a4 {[%clk 0:00:34.1]} 37. Rd8 {[%clk 0:01:34.3]} 37... axb3
{[%clk 0:00:32]} 38. axb3 {[%clk 0:01:36.2]} 38... Ba4 {[%clk 0:00:32.4]} 39.
bxa4 {[%clk 0:01:13.5]} 39... b3 {[%clk 0:00:33.1]} 40. Bf1 {[%clk 0:01:12.6]}
40... b2 {[%clk 0:00:32.8]} 41. Bd3 {[%clk 0:01:13.6]} 41... Rb3 {[%clk
0:00:30]} 42. Bb1 {[%clk 0:01:10.4]} 42... Rc3 {[%clk 0:00:17.5]} 43. Rb8 {[%clk
0:01:08.3]} 43... Rc1+ {[%clk 0:00:17.8]} 44. Kg2 {[%clk 0:01:09.4]} 44... Rxb1
{[%clk 0:00:19.7]} 45. a5 {[%clk 0:01:07.7]} 45... Kg5 {[%clk 0:00:15.9]} 46. a6
{[%clk 0:01:06.3]} 46... Kf4 {[%clk 0:00:16.7]} 47. a7 {[%clk 0:01:06.3]} 47...
Ra1 {[%clk 0:00:17]} 48. Rxb2 {[%clk 0:01:03]} 48... Rxa7 {[%clk 0:00:18.1]} 49.
Re2 {[%clk 0:01:00]} 49... Ra4 {[%clk 0:00:18.6]} 50. Rf2+ {[%clk 0:00:57.5]}
50... Kxe4 {[%clk 0:00:19.7]} 51. g5 {[%clk 0:00:59]} 51... Ra3 {[%clk
0:00:19.8]} 52. Kh2 {[%clk 0:00:58.8]} 52... Rg3 {[%clk 0:00:20]} 53. Rf7 {[%clk
0:00:57.5]} 53... Rxg5 {[%clk 0:00:20.2]} 54. Rxc7 {[%clk 0:00:58.6]} 54... Kf3
{[%clk 0:00:20.7]} 55. Rf7+ {[%clk 0:00:56.8]} 55... Ke2 {[%clk 0:00:22]} 56.
Re7 {[%clk 0:00:55.3]} 56... Kd3 {[%clk 0:00:22.5]} 57. c5 {[%clk 0:00:55.7]}
57... dxc5 {[%clk 0:00:23.1]} 58. d6 {[%clk 0:00:57.1]} 58... e4 {[%clk
0:00:24.5]} 59. d7 {[%clk 0:00:53.2]} 59... Rd5 {[%clk 0:00:25.6]} 60. Kg2
{[%clk 0:00:53.9]} 60... c4 {[%clk 0:00:25.8]} 61. Kf2 {[%clk 0:00:36.7]} 61...
c3 {[%clk 0:00:27.1]} 62. Re5 {[%clk 0:00:30.8]} 62... Rxd7 {[%clk 0:00:26.5]}
63. Rc5 {[%clk 0:00:30.2]} 63... c2 {[%clk 0:00:26.5]} 64. Ke1 {[%clk
0:00:30.8]} 64... Ra7 {[%clk 0:00:25]} 65. Rd5+ {[%clk 0:00:30.7]} 65... Ke3
{[%clk 0:00:26.4]} 0-1

[Event "*** Titled Tuesday 3|2 Blitz"]
[Site "Chess.com"]
[Date "2015.11.03"]
[Round "2"]
[White "armago"]
[Black "AndroQueen"]
[Result "1/2-1/2"]
[WhiteElo "2232"]
[BlackElo "2224"]
[TimeControl "180+2"]
[EndTime "11:23:37 PST"]
[Termination "Game drawn by repetition"]

1. d4 {[%clk 0:03:01.7]} 1... Nf6 {[%clk 0:03:00.5]} 2. c4 {[%clk 0:03:02.6]}
2... g6 {[%clk 0:03:00.5]} 3. Nc3 {[%clk 0:03:03.3]} 3... d5 {[%clk 0:03:01.8]}
4. cxd5 {[%clk 0:03:01.7]} 4... Nxd5 {[%clk 0:03:02.7]} 5. e4 {[%clk 0:03:03.2]}
5... Nxc3 {[%clk 0:03:03.8]} 6. bxc3 {[%clk 0:03:04.7]} 6... Bg7 {[%clk
0:03:05.5]} 7. Nf3 {[%clk 0:03:05.4]} 7... c5 {[%clk 0:03:06.8]} 8. Rb1 {[%clk
0:03:05.4]} 8... O-O {[%clk 0:03:06.1]} 9. Be2 {[%clk 0:03:05.9]} 9... cxd4
{[%clk 0:03:06.8]} 10. cxd4 {[%clk 0:03:06.9]} 10... Qa5+ {[%clk 0:03:07.8]} 11.
Qd2 {[%clk 0:03:08.4]} 11... Qxd2+ {[%clk 0:03:07.5]} 12. Bxd2 {[%clk
0:03:10.3]} 12... b6 {[%clk 0:03:08.9]} 13. Be3 {[%clk 0:03:02.4]} 13... Bb7
{[%clk 0:03:00.8]} 14. e5 {[%clk 0:03:00]} 14... Bd5 {[%clk 0:02:55.9]} 15. Rb2
{[%clk 0:02:51.8]} 15... Nc6 {[%clk 0:02:49.7]} 16. O-O {[%clk 0:02:48.7]} 16...
Na5 {[%clk 0:02:37.2]} 17. Rc1 {[%clk 0:02:46.8]} 17... Rac8 {[%clk 0:02:34.9]}
18. Rbc2 {[%clk 0:02:47.7]} 18... Bb7 {[%clk 0:02:17.1]} 19. Rc7 {[%clk
0:02:39.3]} 19... e6 {[%clk 0:02:02.7]} 20. Bd2 {[%clk 0:02:34.3]} 20... Rxc7
{[%clk 0:01:39]} 21. Rxc7 {[%clk 0:02:34.1]} 21... Rc8 {[%clk 0:01:40.2]} 22.
Rd7 {[%clk 0:02:13.4]} 22... Bd5 {[%clk 0:01:19.3]} 23. Rxa7 {[%clk 0:02:04.4]}
23... Bxa2 {[%clk 0:01:19.1]} 24. h3 {[%clk 0:02:02.5]} 24... Bc4 {[%clk
0:01:14.2]} 25. Bxa5 {[%clk 0:01:51.9]} 25... Bxe2 {[%clk 0:01:10.6]} 26. Bxb6
{[%clk 0:01:53]} 26... Bxf3 {[%clk 0:01:05.8]} 27. gxf3 {[%clk 0:01:53]} 27...
h6 {[%clk 0:01:03.7]} 28. Bc5 {[%clk 0:01:51.2]} 28... Bf8 {[%clk 0:01:04.9]}
29. Bxf8 {[%clk 0:01:46.7]} 29... Kxf8 {[%clk 0:01:05.9]} 30. Rd7 {[%clk
0:01:48]} 30... g5 {[%clk 0:01:01.2]} 31. Kg2 {[%clk 0:01:45.6]} 31... Kg7
{[%clk 0:01:01.8]} 32. d5 {[%clk 0:01:42.1]} 32... exd5 {[%clk 0:01:01.9]} 33.
e6 {[%clk 0:01:42.4]} 33... Kf6 {[%clk 0:00:55.5]} 34. exf7 {[%clk 0:01:43.4]}
34... Rf8 {[%clk 0:00:55.3]} 35. Rd6+ {[%clk 0:01:33.9]} 35... Kg7 {[%clk
0:00:55.5]} 36. Rxd5 {[%clk 0:01:33]} 36... Rxf7 {[%clk 0:00:55.1]} 37. Kg3
{[%clk 0:01:34.6]} 37... Rf4 {[%clk 0:00:53.1]} 38. Re5 {[%clk 0:01:32.9]} 38...
Rd4 {[%clk 0:00:53]} 39. Re4 {[%clk 0:01:33.6]} 39... Rd2 {[%clk 0:00:48]} 40.
f4 {[%clk 0:01:33.9]} 40... gxf4+ {[%clk 0:00:49.4]} 41. Rxf4 {[%clk 0:01:34.3]}
41... Kg6 {[%clk 0:00:49.7]} 42. Ra4 {[%clk 0:01:31.9]} 42... Rd1 {[%clk
0:00:47]} 43. Ra6+ {[%clk 0:01:30.5]} 43... Kg7 {[%clk 0:00:48]} 44. f3 {[%clk
0:01:30.4]} 44... Rd4 {[%clk 0:00:45.9]} 45. f4 {[%clk 0:01:30.7]} 45... Rd5
{[%clk 0:00:33.4]} 46. Kg4 {[%clk 0:01:31]} 46... Rd4 {[%clk 0:00:25.8]} 47. h4
{[%clk 0:01:28.4]} 47... Rb4 {[%clk 0:00:26.6]} 48. h5 {[%clk 0:01:28.8]} 48...
Rc4 {[%clk 0:00:24.6]} 49. Rg6+ {[%clk 0:01:29]} 49... Kh7 {[%clk 0:00:25.9]}
50. Kf3 {[%clk 0:01:27.8]} 50... Rc5 {[%clk 0:00:24]} 51. Kg4 {[%clk 0:01:27.1]}
51... Rc4 {[%clk 0:00:24.9]} 52. Re6 {[%clk 0:01:28.2]} 52... Kg7 {[%clk
0:00:23]} 53. Re7+ {[%clk 0:01:29.1]} 53... Kg8 {[%clk 0:00:14.1]} 54. Kf5
{[%clk 0:01:28.5]} 54... Rc5+ {[%clk 0:00:14.2]} 55. Kf6 {[%clk 0:01:23.9]}
55... Rc6+ {[%clk 0:00:12.6]} 56. Re6 {[%clk 0:01:23.7]} 56... Rc5 {[%clk
0:00:08]} 57. Kg6 {[%clk 0:01:23.2]} 57... Kf8 {[%clk 0:00:05.5]} 58. Kxh6
{[%clk 0:01:22.6]} 58... Kf7 {[%clk 0:00:06.9]} 59. Ra6 {[%clk 0:01:22]} 59...
Rf5 {[%clk 0:00:07.7]} 60. Ra7+ {[%clk 0:01:20.3]} 60... Kf6 {[%clk 0:00:05.2]}
61. Ra4 {[%clk 0:01:18.4]} 61... Rb5 {[%clk 0:00:06.1]} 62. Ra8 {[%clk 0:01:12]}
62... Kf7 {[%clk 0:00:05.1]} 63. Ra6 {[%clk 0:01:10.3]} 63... Rc5 {[%clk
0:00:05.4]} 64. Rg6 {[%clk 0:01:08.4]} 64... Rf5 {[%clk 0:00:06.2]} 65. Rg7+
{[%clk 0:01:08.1]} 65... Kf6 {[%clk 0:00:06.8]} 66. Rg8 {[%clk 0:01:07.2]} 66...
Kf7 {[%clk 0:00:08.1]} 67. Rg4 {[%clk 0:01:07.6]} 67... Kf6 {[%clk 0:00:09.3]}
68. Rh4 {[%clk 0:01:07.7]} 68... Ra5 {[%clk 0:00:09.8]} 69. Rh1 {[%clk
0:01:02.8]} 69... Ra8 {[%clk 0:00:10.1]} 70. Kh7 {[%clk 0:01:03.1]} 70... Ra7+
{[%clk 0:00:10.4]} 71. Kg8 {[%clk 0:01:02.1]} 71... Ra8+ {[%clk 0:00:11.8]} 72.
Kh7 {[%clk 0:01:03]} 72... Ra7+ {[%clk 0:00:13.3]} 73. Kh6 {[%clk 0:01:04]}
73... Ra8 {[%clk 0:00:14.8]} 74. Kh7 {[%clk 0:01:04.6]} 74... Ra7+ {[%clk
0:00:16.2]} 75. Kh6 {[%clk 0:01:02.1]} 75... Ra8 {[%clk 0:00:17]} 1/2-1/2

[Event "*** Titled Tuesday 3|2 Blitz"]
[Site "Chess.com"]
[Date "2015.11.03"]
[Round "2"]
[White "AleksandrNevski"]
[Black "Boryboy"]
[Result "1/2-1/2"]
[WhiteElo "2315"]
[BlackElo "2453"]
[TimeControl "180+2"]
[EndTime "11:23:40 PST"]
[Termination "Game drawn by agreement"]

1. Nf3 {[%clk 0:03:01.9]} 1... d5 {[%clk 0:03:00.4]} 2. g3 {[%clk 0:03:02.4]}
2... Nf6 {[%clk 0:03:00.8]} 3. Bg2 {[%clk 0:03:03.8]} 3... e6 {[%clk 0:03:02.2]}
4. O-O {[%clk 0:03:03.8]} 4... b5 {[%clk 0:03:00.8]} 5. d3 {[%clk 0:02:48.8]}
5... Be7 {[%clk 0:02:56.2]} 6. e4 {[%clk 0:02:49.9]} 6... Bb7 {[%clk 0:02:56.9]}
7. exd5 {[%clk 0:02:35.8]} 7... exd5 {[%clk 0:02:46.2]} 8. Nh4 {[%clk
0:02:18.5]} 8... O-O {[%clk 0:02:40.1]} 9. Nf5 {[%clk 0:02:18.4]} 9... Re8
{[%clk 0:02:24.7]} 10. Nxe7+ {[%clk 0:02:14.4]} 10... Qxe7 {[%clk 0:02:21.2]}
11. Bg5 {[%clk 0:01:50.1]} 11... h6 {[%clk 0:02:16.4]} 12. Bxf6 {[%clk
0:01:49.5]} 12... Qxf6 {[%clk 0:02:17.7]} 13. Nc3 {[%clk 0:01:51.4]} 13... c6
{[%clk 0:02:15.1]} 14. Qd2 {[%clk 0:01:44.8]} 14... Nd7 {[%clk 0:02:15.6]} 15.
Rfe1 {[%clk 0:01:44.5]} 15... Nc5 {[%clk 0:02:07.3]} 16. b4 {[%clk 0:01:17.9]}
16... Ne6 {[%clk 0:02:05.4]} 17. a4 {[%clk 0:01:18]} 17... a6 {[%clk 0:02:06]}
18. axb5 {[%clk 0:01:02.9]} 18... axb5 {[%clk 0:02:06.4]} 19. Rxa8 {[%clk
0:00:55.9]} 19... Rxa8 {[%clk 0:02:08.3]} 20. Ne2 {[%clk 0:00:55.7]} 20... Qb2
{[%clk 0:01:59.8]} 21. h4 {[%clk 0:00:44.8]} 21... Bc8 {[%clk 0:01:44.9]} 22.
Nf4 {[%clk 0:00:36.2]} 22... Ra4 {[%clk 0:01:37.6]} 23. Bh3 {[%clk 0:00:19.7]}
23... Ra1 {[%clk 0:00:57.8]} 24. Bxe6 {[%clk 0:00:17.1]} 24... Bxe6 {[%clk
0:00:57.6]} 25. Kg2 {[%clk 0:00:16.8]} 25... Rxe1 {[%clk 0:00:54.8]} 26. Qxe1
{[%clk 0:00:17.8]} 26... Qf6 {[%clk 0:00:56.2]} 27. c3 {[%clk 0:00:16.5]} 27...
Kh7 {[%clk 0:00:53.1]} 28. h5 {[%clk 0:00:12.9]} 28... Bf5 {[%clk 0:00:52.8]}
29. d4 {[%clk 0:00:11.1]} 29... g5 {[%clk 0:00:42.8]} 30. hxg6+ {[%clk
0:00:11.9]} 30... fxg6 {[%clk 0:00:44.4]} 31. f3 {[%clk 0:00:09]} 31... g5
{[%clk 0:00:45]} 32. Ne2 {[%clk 0:00:08.5]} 32... g4 {[%clk 0:00:44.7]} 33. Nf4
{[%clk 0:00:08.8]} 33... gxf3+ {[%clk 0:00:45.8]} 34. Kxf3 {[%clk 0:00:09.4]}
34... Be4+ {[%clk 0:00:47.3]} 35. Ke3 {[%clk 0:00:09.7]} 35... Qg5 {[%clk
0:00:47.5]} 36. Qf2 {[%clk 0:00:09.9]} 36... Kg8 {[%clk 0:00:42.1]} 37. Kd2
{[%clk 0:00:11.1]} 37... Qg4 {[%clk 0:00:35.1]} 38. Kc1 {[%clk 0:00:11.6]} 38...
h5 {[%clk 0:00:28.8]} 39. Ne2 {[%clk 0:00:11.9]} 39... Bh7 {[%clk 0:00:27.8]}
40. Kd2 {[%clk 0:00:12.2]} 40... Qg6 {[%clk 0:00:28.4]} 41. Qf4 {[%clk 0:00:10]}
41... Qc2+ {[%clk 0:00:26.1]} 42. Ke1 {[%clk 0:00:10.3]} 42... Bd3 {[%clk
0:00:24.4]} 43. Qg5+ {[%clk 0:00:07.1]} 43... Kf8 {[%clk 0:00:21.7]} 44. Qf6+
{[%clk 0:00:07.5]} 44... Kg8 {[%clk 0:00:22.3]} 45. Qg5+ {[%clk 0:00:08.7]}
45... Bg6 {[%clk 0:00:21.1]} 46. Qd8+ {[%clk 0:00:06.3]} 46... Kh7 {[%clk
0:00:21.7]} 47. Qc7+ {[%clk 0:00:06.3]} 47... Kh6 {[%clk 0:00:22.7]} 48. Qf4+
{[%clk 0:00:07.2]} 48... Kh7 {[%clk 0:00:21.3]} 49. Qc7+ {[%clk 0:00:08]} 49...
Kg8 {[%clk 0:00:22.9]} 50. Qd8+ {[%clk 0:00:07.5]} 50... Kf7 {[%clk 0:00:22.1]}
51. Qc7+ {[%clk 0:00:08.5]} 51... Kf8 {[%clk 0:00:19.7]} 52. Qd6+ {[%clk
0:00:09.1]} 52... Kg8 {[%clk 0:00:20.9]} 53. Qd8+ {[%clk 0:00:08.8]} 53... Kg7
{[%clk 0:00:22.5]} 54. Qc7+ {[%clk 0:00:09.8]} 54... Bf7 {[%clk 0:00:24]} 55.
Qe5+ {[%clk 0:00:09.5]} 55... Kh7 {[%clk 0:00:21.7]} 56. Qe7 {[%clk 0:00:09.5]}
56... Kg8 {[%clk 0:00:21.2]} 57. Qd8+ {[%clk 0:00:10.3]} 57... Kg7 {[%clk
0:00:22.2]} 58. Qg5+ {[%clk 0:00:11.2]} 58... Kf8 {[%clk 0:00:23.8]} 59. Qd8+
{[%clk 0:00:11.8]} 59... Kg7 {[%clk 0:00:22.6]} 60. Qg5+ {[%clk 0:00:12.7]}
60... Qg6 {[%clk 0:00:24]} 61. Qxg6+ {[%clk 0:00:13.4]} 61... Kxg6 {[%clk
0:00:25.5]} 62. Kf2 {[%clk 0:00:13.6]} 62... Kf5 {[%clk 0:00:25.1]} 63. Ke3
{[%clk 0:00:13.2]} 63... Kg4 {[%clk 0:00:25.9]} 64. Kf2 {[%clk 0:00:14.3]} 64...
h4 {[%clk 0:00:21.1]} 65. gxh4 {[%clk 0:00:14.5]} 65... Kxh4 {[%clk 0:00:23]}
66. Ke3 {[%clk 0:00:16]} 66... Kg4 {[%clk 0:00:24.6]} 67. Nc1 {[%clk 0:00:17.4]}
67... Kf5 {[%clk 0:00:24.7]} 68. Nb3 {[%clk 0:00:19]} 68... Ke6 {[%clk
0:00:25.9]} 69. Nc5+ {[%clk 0:00:20.2]} 69... Kd6 {[%clk 0:00:27.4]} 70. Kf4
{[%clk 0:00:21.6]} 70... Bg6 {[%clk 0:00:28.1]} 1/2-1/2